Cogmind - Beta 13 @@@ ROGUE MODE // 2024.04.28 @ 02:37:31 Player: Millea Result: Destroyed by D-53 Grenadier with Mini Grenade Launcher Performance ------------- Evolutions (1) 500 Regions Visited (4) 800 Robots Destroyed (9) 45 Value Destroyed (99) 99 Prototype IDs (4) 80 Alien Tech Used (0) 0 Bonus (0) 0 TOTAL SCORE: 1524 Bonus ------- None Cogmind --------- Core Integrity 0/400 Matter 276/300 Energy 99/100 System Corruption 5% Temperature Cool (0) Movement Core (50) Location -9/Mines Parts ------- > --- POWER (1) -------- (None) > --- PROPULSION (2) --- (None) > --- UTILITY (2) ------ (None) > --- WEAPON (4) ------- (None) > --- INVENTORY (5) ---- Ion Engine High-capacity Battery (250) Salvage Targeting Computer Tractor Beam Tractor Beam Peak State ------------ > --- POWER ------------ Ion Engine > --- PROPULSION ------- Light Treads Light Treads > --- UTILITY ---------- Medium Storage Unit Light Armor Plating > --- WEAPON ----------- Spread Laser Assault Rifle Light Assault Rifle Light Assault Rifle > --- INVENTORY -------- Ion Engine Light Treads High-capacity Battery High-capacity Battery Salvage Targeting Computer Propulsion Shielding Propulsion Shielding Tractor Beam Tractor Beam [Rating: 11] Favorites ----------- Power Ion Engine Engine Ion Engine Propulsion Light Treads Treads Light Treads Utility Medium Storage Unit Storage Medium Storage Unit Protection Light Armor Plating Weapon Assault Rifle Energy Gun Small Laser Ballistic Gun Assault Rifle Build | -11 -10 -10 -9 -9 ------- Run | Yrd Mat Min Mat Min Slots Evolved 2 | . . . 2 . Power . | . . . . . Propulsion . | . . . . . Utility . | . . . . . Weapon 2 | . . . 2 . Parts Attached 17 | 6 3 . 4 4 Power 1 | 1 . . . . Engine 1 | 1 . . . . Core . | . . . . . Reactor . | . . . . . Propulsion 3 | 2 . . . 1 Treads 3 | 2 . . . 1 Leg . | . . . . . Wheel . | . . . . . Hover . | . . . . . Flight . | . . . . . Utility 6 | 1 2 . 1 2 Device . | . . . . . Storage 2 | 1 1 . . . Processor . | . . . . . Hackware . | . . . . . Protection 4 | . 1 . 1 2 Artifact . | . . . . . Weapon 7 | 2 1 . 3 1 Energy Gun 3 | 1 . . 1 1 Energy Cannon . | . . . . . Ballistic Gun 4 | 1 1 . 2 . Ballistic Cannon . | . . . . . Launcher . | . . . . . Special Weapon . | . . . . . Impact Weapon . | . . . . . Slashing Weapon . | . . . . . Piercing Weapon . | . . . . . Special Melee Weapon . | . . . . . Unidentified Prototypes . | . . . . . Parts Lost 9 | . . . . 9 Power 1 | . . . . 1 Propulsion 3 | . . . . 3 Utility 1 | . . . . 1 Weapon 4 | . . . . 4 Highest Loss Streak 9 | . . . . 9 To Critical Strikes . | . . . . . Average Slot Usage (%) 97 | . 98 100 96 96 Engine 11 | . 14 14 11 10 Treads 22 | . 28 28 22 21 Storage 11 | . 14 14 11 10 Protection 11 | . 12 14 11 10 Energy Gun 2 | . 4 . 5 . Ballistic Gun 36 | . 23 28 34 42 Naked Turns 20 | . . . . 20 Heaviest Build 25 | 13 20 20 24 25 Greatest Support 40 | 40 40 40 40 40 Greatest Overweight (x) 2 | 2 . . . . Average Overweight (x) . | . . . . . Largest Inventory Capacity 10 | 8 10 10 10 10 Average Capacity 9 | 7 8 10 10 9 Most Carried 10 | 6 10 10 10 10 Average Carried 8 | 3 8 10 9 9 Final Capacity 10 | 8 10 10 10 5 Final Carried 10 | 6 10 10 10 5 Class Distribution -------------------- 68% | Tank 31% | Mutant Dominant Class ---------------- Mutant | -10/Materials Mutant | -10/Mines Tank | -9/Materials Tank | -9/Mines Resources | -11 -10 -10 -9 -9 ----------- Run | Yrd Mat Min Mat Min Matter Collected 448 | 177 46 . 157 68 Remotely . | . . . . . Salvage Created 228 | . 46 . 154 28 Parts 17 | . 4 . 13 . Haulers Intercepted 2 | . 1 . 1 . Recyclers Shooed . | . . . . . Parts Field Recycled . | . . . . . Retrieved Matter . | . . . . . Parts Self-Destructed . | . . . . . Prevented . | . . . . . Kills | -11 -10 -10 -9 -9 ------- Run | Yrd Mat Min Mat Min Combat Hostiles Destroyed 9 | . . . 6 3 Guns 9 | . . . 6 3 Classes Destroyed 5 | . 1 . 3 1 Worker 1 | . . . 1 . Hauler 2 | . 1 . 1 . Swarmer 5 | . . . 5 . Grunt 1 | . . . 1 . Assembled 3 | . . . . 3 Best Kill Streak 3 | . 1 . 3 3 Combat Bots Only 3 | . . . 3 3 Max Kills in Single Turn 2 | . 1 . 2 2 Gunslinging 1 | . . . 1 1 Exploded . | . . . . . Melee . | . . . . . Uniques/NPCs Destroyed . | . . . . . Combat | -11 -10 -10 -9 -9 -------- Run | Yrd Mat Min Mat Min Hostile Shots Fired 115 | . 5 . 24 86 Missed 27 | . 1 . 6 20 Damage Taken 1446 | . 32 . 149 1265 Core 417 | . 6 . 16 395 Absorbed by Shields . | . . . . . Redirected to Shielding 9 | . . . 1 8 Core Remaining (%) 98 | 100 . 97 . . Volleys Fired 25 | . 7 . 11 7 Largest 4 | . 2 . 4 4 Hottest 125 | . 40 . 100 125 Shots Fired 80 | . 14 . 40 26 Gun 80 | . 14 . 40 26 Cannon . | . . . . . Launcher . | . . . . . Special . | . . . . . Kinetic 71 | . 14 . 34 23 Thermal 9 | . . . 6 3 Explosive . | . . . . . Electromagnetic . | . . . . . Robot Hit Streak 6 | . 6 . 5 6 Robot Miss Streak 8 | . 1 . 3 8 Penetration Max . | . . . . . Secondary Targets 4 | . . . 1 3 Max Gunslinging Chain 2 | . . . 1 2 Shots Hit Robots 48 | . 10 . 21 17 Core Hits 25 | . 2 . 11 12 Critical Kills . | . . . . . Critical Parts Destroyed . | . . . . . Critical Strikes . | . . . . . Melee Attacks . | . . . . . Impact . | . . . . . Slashing . | . . . . . Piercing . | . . . . . Sneak Attacks . | . . . . . Combat Hostiles . | . . . . . Follow-up Attacks . | . . . . . Damage Inflicted 558 | . 134 . 250 174 Guns 541 | . 134 . 246 161 Cannons . | . . . . . Explosions . | . . . . . Melee . | . . . . . Ramming 17 | . . . 4 13 Kinetic 463 | . 134 . 191 138 Thermal 78 | . . . 55 23 Explosive . | . . . . . Electromagnetic . | . . . . . Impact . | . . . . . Slashing . | . . . . . Piercing . | . . . . . Highest Corruption 5 | . . . . 5 Average Corruption 5 | . . . . 5 Corruption Purged . | . . . . . Corruption Blocked . | . . . . . Overload Shots . | . . . . . Overflow Damage . | . . . . . Projectiles . | . . . . . Explosions . | . . . . . Melee . | . . . . . Knockbacks . | . . . . . Impact . | . . . . . Kinetic . | . . . . . Secondary . | . . . . . Self-Inflicted Damage . | . . . . . Shots . | . . . . . Rammed 4 | . . . . 4 Targets Rammed 5 | . . . 1 4 Kicked . | . . . . . Crushed 1 | . . . 1 . Highest Temperature 249 | . . . 58 249 Average Temperature 63 | . . . 24 111 Received Heat Transfer 180 | . . . . 180 Siege Activations . | . . . . . Robots Corrupted . | . . . . . Combat Hostiles . | . . . . . Parts Fried . | . . . . . Impact Corruptions . | . . . . . Robots Melted . | . . . . . Combat Hostiles . | . . . . . Parts Melted . | . . . . . Heat Transferred 155 | . . . 125 30 Parts Sabotaged . | . . . . . Parts Stolen . | . . . . . Parts Stripped . | . . . . . Power Chain Reactions . | . . . . . Alert | -11 -10 -10 -9 -9 ------- Run | Yrd Mat Min Mat Min Peak Influence 178 | . 27 10 178 84 Initial 69 | . . 10 3 69 Average 40 | . 6 10 94 42 Maximum Alert Level . | . . . . . Low Security (%) 100 | 100 100 100 100 100 Level 1 . | . . . . . Level 2 . | . . . . . Level 3 . | . . . . . Level 4 . | . . . . . Level 5 . | . . . . . High Security . | . . . . . Max Security . | . . . . . Squads Dispatched . | . . . . . Investigation . | . . . . . Extermination . | . . . . . Reinforcement . | . . . . . Assault . | . . . . . Garrison . | . . . . . Intercept . | . . . . . Searches Triggered . | . . . . . Construction Impeded . | . . . . . Haulers Reinforced . | . . . . . Active Scanning Responses . | . . . . . Cargo Convoy Interrupts . | . . . . . Stealth | -11 -10 -10 -9 -9 --------- Run | Yrd Mat Min Mat Min Distress Signals 1 | . . . 1 . Communications Jammed . | . . . . . Distress Signals . | . . . . . Times Spotted 33 | . 2 . 9 22 Peak Tracking Total 19 | . 3 . 3 19 Tactical Retreats 1 | . . . 1 . Traps | -11 -10 -10 -9 -9 ------- Run | Yrd Mat Min Mat Min Traps Triggered 1 | . . . . 1 Indirectly . | . . . . . Trap Hack Attempts . | . . . . . Triggered . | . . . . . Disarmed . | . . . . . Reprogrammed . | . . . . . Reused . | . . . . . Traps Extracted . | . . . . . Installed . | . . . . . Triggered . | . . . . . Machines | -11 -10 -10 -9 -9 ---------- Run | Yrd Mat Min Mat Min Machines Disabled 1 | . . . . 1 Max in Single Turn 1 | . . . . 1 Machines Repaired . | . . . . . Machines Dismantled . | . . . . . Machines Sabotaged . | . . . . . Overloaded Fab Kills . | . . . . . Hacking | -11 -10 -10 -9 -9 --------- Run | Yrd Mat Min Mat Min Machines Accessed 3 | . 1 . 1 1 Terminals 2 | . 1 . 1 . Fabricators . | . . . . . Repair Stations . | . . . . . Recycling Units . | . . . . . Scanalyzers . | . . . . . Garrison Access . | . . . . . Total Hacks 7 | . 4 . 2 1 Successful 4 | . 1 . 2 1 Failed 3 | . 3 . . . Catastrophic . | . . . . . Database Lockouts . | . . . . . Manual 1 | . . . 1 . Terminals 6 | . 4 . 2 . Fabricators . | . . . . . Repair Stations . | . . . . . Recycling Units . | . . . . . Scanalyzers . | . . . . . Garrison Access . | . . . . . Terminal Hacks 4 | . 1 . 2 1 Prototype ID Bank 2 | . 1 . 1 . Open Door 1 | . . . . 1 Branch Access Points 1 | . . . 1 . Fabricator Hacks . | . . . . . Repair Station Hacks . | . . . . . Recycling Unit Hacks . | . . . . . Scanalyzer . | . . . . . Garrison Access Hacks . | . . . . . Unauthorized Hacks . | . . . . . Terminals . | . . . . . Fabricators . | . . . . . Repair Stations . | . . . . . Recycling Units . | . . . . . Scanalyzers . | . . . . . Garrison Access . | . . . . . Data Cores Recovered . | . . . . . Used . | . . . . . Hacking Detections 2 | . 1 . 1 . Full Trace Events . | . . . . . Feedback Events . | . . . . . Feedback Blocked . | . . . . . Robot Schematics Acquired . | . . . . . Robots Built . | . . . . . Authchips . | . . . . . Time . | . . . . . Total Robot Build Rating . | . . . . . Part Schematics Acquired . | . . . . . Parts Built . | . . . . . Authchips . | . . . . . Time . | . . . . . Total Part Build Rating . | . . . . . Parts Repaired . | . . . . . Time . | . . . . . Parts Recycled . | . . . . . Recycled Matter . | . . . . . Retrieved Matter . | . . . . . Retrieved Components . | . . . . . Parts Scanalyzed . | . . . . . Part Schematics Acquired . | . . . . . Parts Damaged . | . . . . . Bothacking | -11 -10 -10 -9 -9 ------------ Run | Yrd Mat Min Mat Min Used RIF Installer . | . . . . . Robots Hacked . | . . . . . Non-combat . | . . . . . Combat . | . . . . . Robot Hacks Applied . | . . . . . Relay Couplers Released . | . . . . . Fabnet Peak Effective % . | . . . . . Robots Rewired . | . . . . . Allies Hacked . | . . . . . Hacks Repelled . | . . . . . Allies | -11 -10 -10 -9 -9 -------- Run | Yrd Mat Min Mat Min Total Allies . | . . . . . Largest Group . | . . . . . Highest-Rated Group . | . . . . . Highest-Rated Ally . | . . . . . Total Orders . | . . . . . Ally Attacks . | . . . . . Total Damage . | . . . . . Kills . | . . . . . Allies Corrupted . | . . . . . Allies Melted . | . . . . . Intel | -11 -10 -10 -9 -9 ------- Run | Yrd Mat Min Mat Min Robot Analysis Total . | . . . . . Derelict Logs Recovered 2 | . . 1 . 1 Drone Launches . | . . . . . Drone Recoveries . | . . . . . Exploration | -11 -10 -10 -9 -9 ------------- Run | Yrd Mat Min Mat Min Turns Passed 1246 | 93 204 60 208 681 Spaces Moved 604 | 52 106 38 100 308 Core 47 | 7 . . . 40 Treads 557 | 45 106 38 100 268 Legs . | . . . . . Wheels . | . . . . . Hover . | . . . . . Flight . | . . . . . Fastest Speed 50 | 50 160 160 160 50 Average Speed 152 | 152 160 160 160 145 Slowest Speed 160 | 160 160 160 160 160 Overloaded Moves . | . . . . . Propulsion Burnouts . | . . . . . Robots Hopped . | . . . . . Cave-ins Triggered . | . . . . . Exploration Rate (%) 26 | 4 35 11 17 64 Regions Visited 4 Branch Regions 2 Pre-discovered Areas . | . . . . . Known Exits Taken 1 | . . . 1 . Unknown Exits Taken 3 | 1 1 1 . . Scrap Searched 1 | . . . . 1 Spaces Dug . | . . . . . Terrain Destroyed . | . . . . . Melee . | . . . . . Projectile . | . . . . . AOE . | . . . . . Terrain Rammed . | . . . . . Walls Destroyed . | . . . . . Machines Disabled . | . . . . . Actions | -11 -10 -10 -9 -9 --------- Run | Yrd Mat Min Mat Min Total 877 | 63 130 37 124 523 Wait 201 | . . . 3 198 Move 600 | 51 105 37 99 308 Hop . | . . . . . Pick Up 19 | 6 9 . 3 1 Fast Attach 9 | 6 1 . 2 . Attach 4 | . . . 1 3 Detach . | . . . . . Swap 4 | . 2 . 1 1 Drop 10 | . 6 . 3 1 Fire 25 | . 7 . 11 7 Melee . | . . . . . Ram . | . . . . . Kick . | . . . . . Crush 5 | . . . 1 4 Escape Stasis . | . . . . . Rewire . | . . . . . Trap . | . . . . . Miscellaneous . | . . . . . Route ------- -11/Scrapyard -10/Materials -10/Mines -9/Materials -9/Mines History --------- Turn | Location | Event 14 | -11/Scrapyard | Discovered new exit (range 16) 94 | -11/Scrapyard | Entered Materials 284 | -10/Materials | Discovered new exit (range 9) 298 | -10/Materials | Entered Mines 309 | -10/Mines | Build established: Mutant 316 | -10/Mines | Learned Materials terminal intel 346 | -10/Mines | Discovered new exit (range 7) 358 | -10/Mines | Entered Materials 358 | -9/Materials | Evolved 2 slots: Weapon x2 359 | -9/Materials | Loaded intel: 11 terminal locations 488 | -9/Materials | Identified exit to Mines 566 | -9/Materials | Entered Mines 572 | -9/Mines | Met a Derelict who couldn't figure out how to use a Trap Extractor 648 | -9/Mines | Build established: Tank 1191 | -9/Mines | Assembled infested the area 1226 | -9/Mines | Core integrity fell below 50% 1227 | -9/Mines | Released all parts (3) 1229 | -9/Mines | Core integrity fell below 20% 1247 | -9/Mines | Destroyed by D-53 Grenadier with Mini Grenade Launcher Last Messages --------------- 01226_ as-60814 destroyed. 01226_ K-01 Serf destroyed. 01226_ as-05720 destroyed. 01227_ Lgt. Treads destroyed. 01227_ as-21281 destroyed. 01227_ as-18933 destroyed. 01227_ as-13723 destroyed. 01227_ as-99620 destroyed. 01227_ as-69732 destroyed. 01227_ as-16782 destroyed. 01227_ Released Spread Laser. 01227_ Released Med. Storage Unit. 01227_ Released Propulsion Shielding. 01227_ Acquired 6 matter. 01228_ Knocked back. 01228_ Acquired 14 matter. 01228_ as-70091 destroyed. 01228_ as-98743 destroyed. 01228_ as-18528 destroyed. 01231_ The unstable cave ceiling collapses. Map ----- +----------------------------------------------------+ | | | | | | | ?????????????????????????????????????? | | ?????????????????????????????????????? | | ?????????????????????????????????????? | | ?????????????????????????????????????? | | ?????????????????????????????????????? | | ???????????###???????????????????????? | | ??????????# ##??????????????????????? | | ??????#### #?????????##???????????? | | ?????## #????##### ##?????????? | | ????## #?#### ????????? | | ????# """ ### ???????? | | ???## """ #?# ???????? | | ??## """ #?# ????????? | | ??# ### < ?????????? | | ??# #??????????? | | ??# #??????????## | | ???# ## ##d #???????????# | | ???###### ## #????????????# | | ????????## ## d #########????# | | ?????????# ## # ###### | | ?????????# ## # ## | | ?????????# ## | | ?????????# @ ## ! ## | | ?????????##### #### ! ! # | | ?????????????# ##??## ! # | | ?????????????# #????## % % | | ????????????# ##?????## | | ???????????# #???????#### ## | | ?????????? ??????????###### # | | ????????? ????????????????####? | | ???????? #### ???????????????????? | | ???????###???### ???????????????????# | | ????????????????$ ??????????????????## | | ????????????????## ????????????????## | | ??????????????????#???????????###### | | ??????????????????????????????# | | ??????????????????????????????# | | ??????????????????????######### ### | | ??????????????????????# #?# | | ??????????????????????# ####### #?# | | ??????????????????????# #?????# #?## | | ??????????????????????# #?????# #??### | | ??????????????????????# #??#### ###### | | ???????###????######### #??# | | ???????# ####?# #??## | | ??????## ### ############## #### | | ??????# #??????## ## #??? | +----------------------------------------------------+ Best States ------------- Heat Dissipation 28 Energy Generation 10 Energy Capacity 250 Matter Stores 276 Matter Capacity 300 Sight Range 16 Terrain Scan Density 10 Armor Coverage 150 Propulsion Shielding 33 Evasion (%) 50 Recoil Reduction 2 Item Schematics ----------------- None Robot Schematics ------------------ None Fabricated ------------ Nothing Alien Tech Used ----------------- None Achievements -------------- None Challenges ------------ None Game ------ Seed HeatNullGravjet Manual? 0 Play Time 00:07:59 Cumulative 286.3 hours Start 2024.04.28 @ 02:32:02 End 2024.04.28 @ 02:37:31 Sessions 1 Manual Loads 0 Difficulty Rogue Special Mode None Game No. 214 Rogue 214 Adventurer 0 Explorer 0 Win Type - Total 10 Types 6/0/3/1/0/0/0/0/0 Lore% 78 Gallery% 84 Achievement% 71 Wizard Run 0 Options --------- Layout 2 ASCII 1 Keyboard 0 Movement Mouse Keybinds 0 Fullscreen 2 Font 24/Smallcaps Map View 50x44 Zoom Use 0% Tactical HUD 1 Map Filters NONE Filters NONE Steam 1 RUN: ba569d5c-2538-443f-8bbe-3b5fb9b58c8e